bitfinex/quotes_BTCUSD_20220306
["timestamp","ask_amount","ask_price","bid_price","bid_amount"]
[1646582054114,0.00554241,38849.0,38844.0,0.202243]
[1646582055718,0.32200622,38849.0,38842.0,0.16532969]
[1646582055915,0.5285505,38849.0,38843.0,0.20225]
[1646582056118,0.21208669,38849.0,38843.0,0.20225]
[1646582056358,0.00554241,38849.0,38843.0,0.20225]
[1646582056758,0.00554241,38849.0,38843.0,0.27610528]
[1646582059764,0.00554241,38849.0,38848.0,0.18691634]
[1646582060024,0.00554241,38849.0,38848.0,0.202218]
[1646582061123,0.00554241,38849.0,38846.0,0.15722055]
[1646582061326,0.00554241,38849.0,38848.0,0.202218]
[1646582061524,0.00554241,38849.0,38846.0,0.15722055]
[1646582061725,0.32200622,38849.0,38848.0,0.202218]
[1646582062524,0.32200622,38849.0,38844.0,0.001]
[1646582062925,0.26371101,38846.0,38845.0,0.202234]
[1646582063758,0.26371101,38846.0,38838.0,0.23590349]
[1646582063961,0.26371101,38846.0,38839.0,0.202271]
[1646582064459,0.15533646,38843.0,38839.0,0.202271]
[1646582064957,0.32812201,38845.0,38839.0,0.202271]
[1646582065459,0.06441433,38844.0,38839.0,0.202271]
[1646582065658,0.128832,38843.0,38839.0,0.202271]
[1646582065858,0.064416,38843.0,38839.0,0.202271]
[1646582066056,0.32812701,38843.0,38839.0,0.202271]
[1646582066657,0.26371101,38843.0,38839.0,0.202271]
[1646582066859,0.26371101,38843.0,38839.0,0.41438423]
[1646582067909,0.48195883,38845.0,38839.0,0.41438423]
[1646582069110,0.31646381,38845.0,38839.0,0.41438423]
[1646582070313,0.31646381,38846.0,38839.0,0.41438423]
[1646582070510,0.31646381,38845.0,38839.0,0.41438423]
[1646582072962,0.31646381,38844.0,38839.0,0.41438423]
[1646582073162,0.31646381,38844.0,38843.0,0.00025757]
[1646582073367,0.31646381,38845.0,38843.0,0.20251057]
[1646582073563,0.31646381,38845.0,38843.0,0.202253]
[1646582075205,0.31646381,38846.0,38843.0,0.202253]
[1646582075807,0.00554241,38849.0,38846.0,0.56321324]
[1646582076008,0.00554241,38849.0,38847.0,0.202225]
[1646582076205,0.00554241,38849.0,38848.0,0.00025753]
[1646582076606,0.00554241,38849.0,38848.0,0.20247553]
[1646582081963,0.00554241,38849.0,38848.0,0.20247552]
[1646582086963,0.00554241,38849.0,38848.0,0.18477852]
[1646582087765,0.00544599,38849.0,38848.0,0.18477852]
[1646582088668,0.31655963,38857.0,38849.0,1.1]
[1646582088871,0.00084406,38858.0,38853.0,0.00025747]
[1646582089072,0.00084406,38858.0,38857.0,0.00025747]
[1646582089269,0.00084406,38858.0,38857.0,0.18471947]
[1646582089473,0.36918591,38863.0,38857.0,0.18471947]
[1646582089667,0.37002994,38863.0,38861.0,0.00025747]
[1646582089867,0.00084403,38863.0,38862.0,0.18468747]
[1646582090512,0.36918591,38864.0,38862.0,0.18468747]
[1646582090712,0.36918591,38864.0,38862.0,0.18443]
[1646582091918,0.18127038,38867.0,38862.0,0.18443]
[1646582091919,0.36918591,38865.0,38862.0,0.18443]
[1646582092519,0.36918591,38863.0,38856.0,0.186458]
[1646582092722,0.36918591,38863.0,38860.0,0.11257339]
[1646582092922,0.36918591,38863.0,38862.0,0.11257339]
[1646582093124,0.36918591,38863.0,38862.0,0.29700339]
[1646582094865,0.36918591,38864.0,38863.0,0.184424]
[1646582095064,0.36918591,38864.0,38863.0,0.16458099]
[1646582095868,0.36918591,38865.0,38863.0,0.16458099]
[1646582096066,0.36918591,38865.0,38857.0,0.164608]
[1646582096267,0.36918591,38864.0,38857.0,0.464608]
[1646582096669,0.36918591,38864.0,38857.0,0.466608]
[1646582097167,0.36918591,38864.0,38857.0,0.166608]
[1646582097912,0.36918591,38864.0,38857.0,0.164608]
[1646582097913,0.36918591,38863.0,38857.0,0.164608]
[1646582098311,0.36918591,38863.0,38854.0,0.01265102]
[1646582098510,0.36918591,38863.0,38855.0,0.164623]
[1646582098711,0.16999133,38858.0,38855.0,0.164623]
[1646582099313,0.16999133,38858.0,38855.0,0.159623]
[1646582100113,0.23438333,38858.0,38855.0,0.159623]
[1646582100911,0.16999133,38858.0,38855.0,0.159623]
[1646582104165,0.23438233,38858.0,38855.0,0.159623]
[1646582104466,0.23438233,38858.0,38849.0,0.49487679]
[1646582104668,0.23438233,38858.0,38850.0,0.160649]
[1646582104866,0.60356824,38858.0,38850.0,0.160649]
[1646582105111,0.23438233,38858.0,38850.0,0.160649]
[1646582105512,0.60356824,38858.0,38850.0,0.160649]
[1646582105914,0.60356824,38858.0,38850.0,0.159649]
[1646582106620,0.60356824,38858.0,38847.0,0.31984909]
[1646582106621,0.78121054,38857.0,38847.0,0.3087]
[1646582106820,0.78121054,38857.0,38847.0,0.1241]
[1646582106821,0.064401,38854.0,38847.0,0.1241]
[1646582107016,0.180204,38854.0,38847.0,0.159666]
[1646582107223,0.180204,38854.0,38847.0,0.159672]
[1646582107516,0.20783704,38848.0,38847.0,0.159672]
[1646582107717,0.20783704,38848.0,38847.0,0.33819044]
[1646582107916,0.180204,38854.0,38847.0,0.33819044]
[1646582108116,0.180204,38854.0,38848.0,0.159667]
[1646582108997,0.15557047,38849.0,38847.0,0.17851844]
[1646582109196,0.180204,38854.0,38848.0,0.159671]
[1646582109396,0.180204,38854.0,38847.0,0.17851844]
[1646582109598,0.0514,38854.0,38849.0,0.159662]
[1646582109802,0.0514,38854.0,38847.0,0.47851844]
[1646582109997,0.0514,38854.0,38848.0,0.159665]
[1646582110797,0.0514,38854.0,38849.0,0.159662]
[1646582110997,0.0514,38854.0,38847.0,0.47851844]
[1646582111199,0.0514,38854.0,38848.0,0.159666]
[1646582111803,0.49268591,38857.0,38848.0,0.159666]
[1646582111804,0.1235,38857.0,38853.0,0.16130777]
[1646582112001,0.01369422,38859.0,38854.0,0.459634]
[1646582112002,0.00084422,38859.0,38854.0,0.459634]
[1646582112206,0.48766051,38861.0,38858.0,0.02574698]
[1646582112406,0.36918591,38863.0,38859.0,0.159605]
[1646582112618,0.36918591,38864.0,38859.0,0.159605]
[1646582113218,0.02636105,38865.0,38859.0,0.159605]
[1646582113219,0.36918591,38865.0,38859.0,0.159605]
[1646582113419,0.36918591,38865.0,38861.0,0.159592]
[1646582113823,0.56264849,38865.0,38861.0,0.159592]
[1646582114020,0.36918591,38864.0,38861.0,0.159592]
[1646582114220,0.36918591,38865.0,38861.0,0.159592]
[1646582115023,0.53162732,38865.0,38861.0,0.159592]
[1646582115220,0.36918591,38865.0,38861.0,0.159592]
[1646582115724,0.36918591,38865.0,38862.0,0.3]
[1646582115925,0.001,38867.0,38864.0,0.11257339]
[1646582116124,0.001,38867.0,38865.0,0.45957]
[1646582116369,0.001,38867.0,38866.0,0.48530734]
[1646582116569,0.001,38867.0,38866.0,0.472352]
[1646582116766,0.001,38867.0,38866.0,0.572352]
[1646582116968,0.001,38867.0,38866.0,0.79066091]
[1646582120822,0.0011,38870.0,38867.0,1.529559]
[1646582121020,0.0011,38870.0,38869.0,0.11257339]
[1646582121221,0.0011,38870.0,38869.0,0.57211939]
[1646582121626,0.0011,38870.0,38869.0,0.67211939]
[1646582122226,0.00022029,38873.0,38869.0,0.51257339]
[1646582122424,0.00022029,38873.0,38872.0,0.11257339]
[1646582122627,0.00022029,38873.0,38872.0,0.58373334]
[1646582122827,0.00022029,38873.0,38872.0,0.68373334]
[1646582123026,0.0032,38877.0,38873.0,0.159522]
[1646582123226,0.0032,38877.0,38876.0,0.11257339]
[1646582123427,0.0032,38877.0,38876.0,0.27207839]
[1646582123626,0.0032,38877.0,38876.0,0.57207839]
[1646582123864,0.0032,38877.0,38876.0,0.27207839]
[1646582124267,0.0032,38877.0,38876.0,0.57207839]
[1646582124866,0.00131036,38878.0,38877.0,1.259501]
[1646582125068,0.00131036,38878.0,38877.0,1.3852344]
[1646582125267,0.0011,38878.0,38877.0,1.3852344]
[1646582125666,0.0011,38878.0,38877.0,1.35975833]
[1646582127368,0.0011,38884.0,38878.0,1.17841154]
[1646582127614,0.0011,38884.0,38882.0,0.1597273]
[1646582127820,0.0011,38884.0,38882.0,0.4597273]
[1646582128315,0.0011,38884.0,38882.0,0.5597273]
[1646582129315,0.00131081,38884.0,38882.0,0.5597273]
[1646582129515,0.00184312,38890.0,38882.0,0.68835925]
[1646582129717,0.00184312,38890.0,38885.0,0.11257339]
[1646582129915,0.00184312,38890.0,38885.0,0.27202539]
[1646582130318,0.001,38890.0,38885.0,0.37202539]
[1646582131469,0.001,38890.0,38885.0,0.27202539]
[1646582131665,0.001,38890.0,38885.0,0.37202539]
[1646582132869,0.001,38890.0,38885.0,0.27202539]
[1646582133069,0.001,38890.0,38885.0,0.37202539]
[1646582134273,0.00122555,38887.0,38885.0,0.27202539]
[1646582134674,0.00122555,38887.0,38885.0,0.15970927]
[1646582135019,0.00122555,38887.0,38885.0,0.00025727]
[1646582135418,0.18058884,38886.0,38885.0,0.00025727]
[1646582135819,0.18058884,38886.0,38882.0,0.005]
[1646582136024,0.18058884,38886.0,38881.0,0.16174598]
[1646582136222,0.18058884,38886.0,38873.0,0.5048]
[1646582136423,0.3,38885.0,38874.0,0.1595]
[1646582136622,0.18058884,38886.0,38877.0,0.005]
[1646582136623,0.17851191,38879.0,38877.0,0.005]
[1646582136823,0.17851191,38879.0,38878.0,0.15975129]
[1646582137025,0.064345,38885.0,38878.0,0.15975129]
[1646582137224,0.064345,38885.0,38878.0,0.159494]
[1646582137525,0.064345,38885.0,38881.0,0.17493985]
[1646582138124,0.19367908,38884.0,38882.0,0.159469]
[1646582138323,0.19367908,38884.0,38878.0,0.071352]
[1646582138528,0.19367908,38884.0,38879.0,0.159485]
[1646582139162,0.19367908,38884.0,38881.0,0.20992498]
[1646582139362,0.19367908,38884.0,38882.0,0.15947]
[1646582139563,0.19367908,38884.0,38883.0,0.159465]
[1646582139863,0.19367908,38884.0,38881.0,0.20992498]
[1646582140865,0.01285,38885.0,38881.0,0.20992498]
[1646582141071,0.00119412,38886.0,38882.0,0.43849294]
[1646582141072,0.001,38886.0,38882.0,0.43849294]
[1646582141266,0.00119412,38886.0,38882.0,0.44539281]
[1646582141664,0.00119412,38886.0,38882.0,0.15947]
[1646582141864,0.00119412,38886.0,38884.0,0.07456749]
[1646582142065,0.00119412,38886.0,38885.0,0.159453]
[1646582142265,0.001,38886.0,38885.0,0.159453]
[1646582145023,0.001,38886.0,38885.0,0.21614659]
[1646582145823,0.001,38886.0,38885.0,0.24187999]
[1646582147066,0.00032952,38889.0,38885.0,0.24187999]
[1646582147269,0.00032952,38889.0,38888.0,0.0257334]
[1646582147465,0.00032952,38889.0,38888.0,0.1851674]
[1646582147866,0.00032952,38889.0,38888.0,0.18516409]
[1646582148268,0.0011,38895.0,38888.0,0.47702096]
[1646582148468,0.0011,38895.0,38889.0,0.45128287]
[1646582148667,0.0011,38895.0,38889.0,0.29185687]
[1646582148869,0.0011,38895.0,38888.0,0.159429]
[1646582149068,0.0011,38895.0,38888.0,0.15943]
[1646582149867,0.1931358,38895.0,38888.0,0.15943]
[1646582150421,0.1931358,38895.0,38887.0,0.1860211]
[1646582150422,0.1881358,38895.0,38887.0,0.1860211]
[1646582150921,0.1881358,38895.0,38887.0,0.005]
[1646582151121,0.064334,38893.0,38887.0,0.005]
[1646582152022,0.064334,38893.0,38885.0,0.05669359]
[1646582152223,0.064334,38893.0,38884.0,0.159448]
[1646582152426,0.064335,38892.0,38884.0,0.159452]
[1646582152622,0.059335,38892.0,38884.0,0.159452]
[1646582152825,0.059335,38892.0,38885.0,0.159448]
[1646582153023,0.059335,38892.0,38884.0,0.005]
[1646582153323,0.059335,38892.0,38885.0,0.159448]
[1646582153522,0.15493331,38888.0,38885.0,0.159448]
[1646582155171,0.14993331,38888.0,38885.0,0.159448]
[1646582155371,0.14993331,38888.0,38884.0,0.004]
[1646582155573,0.21427491,38888.0,38884.0,0.004]
[1646582155971,0.21427491,38888.0,38877.0,0.1]
[1646582156170,0.21427491,38888.0,38878.0,0.159481]
[1646582156171,0.27861491,38888.0,38878.0,0.159481]
[1646582156676,0.064344,38886.0,38878.0,0.45168277]
[1646582157072,0.064344,38886.0,38878.0,0.52231476]
[1646582157272,0.27861491,38888.0,38878.0,0.52231476]
[1646582157917,0.27861491,38888.0,38878.0,0.23009472]
[1646582158518,0.27861491,38888.0,38878.0,0.52231474]
[1646582158719,0.21427331,38888.0,38878.0,0.52231474]
[1646582158918,0.14993331,38888.0,38878.0,0.52231474]
[1646582159921,0.14993331,38888.0,38883.0,0.20997155]
[1646582160122,0.14993331,38888.0,38884.0,0.159457]
[1646582160622,0.14151568,38893.0,38884.0,0.159457]
[1646582160623,0.01285,38893.0,38884.0,0.159457]
[1646582160822,0.01285,38893.0,38883.0,0.20997155]
[1646582161272,0.01285,38893.0,38890.0,0.16953309]
[1646582161674,0.03773865,38894.0,38890.0,0.16953309]
[1646582163672,0.20508737,38891.0,38890.0,0.16953309]
[1646582163873,0.03773865,38894.0,38890.0,0.16953309]
[1646582166016,0.1897461,38893.0,38890.0,0.16953309]
[1646582166215,0.03773865,38894.0,38890.0,0.23967122]
[1646582166816,0.03773865,38894.0,38890.0,0.16953309]
[1646582167216,0.19307153,38893.0,38890.0,0.16953309]
[1646582167818,0.03773865,38894.0,38890.0,0.16953309]
[1646582168420,0.03705353,38894.0,38890.0,0.46953309]
[1646582168869,0.20043838,38894.0,38890.0,0.16953309]
[1646582169070,0.20043838,38894.0,38890.0,0.46953309]
[1646582169270,0.20043838,38894.0,38890.0,0.16953309]
[1646582169470,0.20043838,38894.0,38890.0,0.46953309]
[1646582169676,0.03705353,38894.0,38890.0,0.46953309]
[1646582169875,0.001,38896.0,38892.0,0.159409]
[1646582170073,0.001,38896.0,38890.0,0.46953309]
[1646582170074,0.001,38896.0,38891.0,0.3]
[1646582170272,0.001,38896.0,38892.0,0.159409]
[1646582170472,0.001,38896.0,38891.0,0.3]
[1646582170677,0.19524863,38895.0,38891.0,0.3]
[1646582171074,0.19524863,38895.0,38890.0,0.17053309]
[1646582171075,0.19524863,38895.0,38890.0,0.001]
[1646582172075,0.19524863,38895.0,38881.0,0.159457]
[1646582172278,0.064333,38893.0,38885.0,0.05754931]
[1646582172519,0.064333,38893.0,38886.0,0.3]
[1646582173118,0.23449058,38895.0,38887.0,0.159438]
[1646582173318,0.23449058,38895.0,38888.0,0.3]
[1646582173520,0.19524863,38895.0,38886.0,0.3]
[1646582173727,0.19524863,38895.0,38887.0,0.159435]
[1646582173919,0.19524863,38895.0,38888.0,0.3]
[1646582174322,0.19524863,38895.0,38890.0,0.16133942]
[1646582174924,0.19524863,38895.0,38891.0,0.06354641]
[1646582175724,0.19524863,38895.0,38890.0,0.16133942]
[1646582176570,0.19524863,38895.0,38882.0,0.3]
[1646582176771,0.19524863,38895.0,38886.0,0.05966496]
[1646582177172,0.20510705,38889.0,38886.0,0.05966496]
[1646582177372,0.20510705,38889.0,38887.0,0.159436]
[1646582177577,0.48720974,38896.0,38887.0,0.159436]
[1646582177872,0.065327,38896.0,38887.0,0.16644599]
[1646582178274,0.065327,38896.0,38882.0,0.3]
[1646582178474,0.48720974,38896.0,38883.0,0.159452]
[1646582178673,0.48720974,38896.0,38884.0,0.3]
[1646582178874,0.48720974,38896.0,38884.0,0.15945]
[1646582178875,0.55153978,38896.0,38884.0,0.15945]
[1646582179076,0.55153978,38896.0,38885.0,0.3]
[1646582179275,0.52188274,38895.0,38885.0,0.3]
[1646582179474,0.1533749,38889.0,38885.0,0.48515691]
[1646582179675,0.1533749,38889.0,38886.0,0.159441]
[1646582179876,0.67470414,38895.0,38886.0,0.159441]
[1646582180120,0.58621374,38895.0,38887.0,0.3]
[1646582180922,0.18132502,38889.0,38887.0,0.3]
[1646582181120,0.58621374,38895.0,38888.0,0.159431]
[1646582181419,0.064332,38893.0,38885.0,0.48515691]
[1646582182024,0.064332,38893.0,38886.0,0.159442]
[1646582182222,0.20375372,38895.0,38887.0,0.3]
[1646582182423,0.13942272,38895.0,38887.0,0.3]
[1646582183225,0.13942272,38895.0,38888.0,0.159433]
[1646582183431,0.12965804,38896.0,38889.0,0.3]
[1646582183626,0.12965804,38896.0,38884.0,0.05499981]
[1646582183627,0.001,38896.0,38891.0,0.15950867]
[1646582183894,0.001,38896.0,38892.0,0.459409]
[1646582184296,0.001,38896.0,38895.0,0.02572347]
[1646582184491,0.001,38896.0,38895.0,0.159393]
[1646582184691,0.001,38896.0,38895.0,0.459393]
[1646582184890,0.001,38896.0,38895.0,0.4851168]
[1646582186392,0.001,38896.0,38895.0,0.459393]
[1646582187391,0.001,38896.0,38895.0,0.4851168]
[1646582189315,0.21541651,38896.0,38895.0,0.1851168]
[1646582189513,0.21541651,38896.0,38895.0,0.159393]
[1646582189514,0.001,38896.0,38895.0,0.159393]
[1646582190519,0.17700998,38896.0,38895.0,0.159393]
[1646582191118,0.17700998,38896.0,38895.0,0.85862759]
[1646582191766,0.001,38896.0,38895.0,0.85862759]
[1646582192868,0.001,38896.0,38895.0,0.85852229]
[1646582193971,0.001,38896.0,38895.0,0.99912929]
[1646582194268,0.001,38896.0,38895.0,1.15852229]
[1646582197929,0.0011,38900.0,38895.0,1.15852229]
[1646582197930,0.00194785,38905.0,38898.0,0.159375]
[1646582198126,0.00194785,38905.0,38899.0,0.3]
[1646582198327,0.00194785,38905.0,38900.0,0.1596222]
[1646582198525,0.00194785,38905.0,38900.0,0.4596222]
[1646582198771,0.0011,38905.0,38900.0,0.4596222]
[1646582200173,0.00012841,38902.0,38900.0,0.4596222]
[1646582201175,0.0011,38905.0,38900.0,0.4596222]
[1646582201374,0.00012841,38902.0,38900.0,0.4596222]
[1646582202377,0.0011,38905.0,38900.0,0.4596222]
[1646582202617,0.00022614,38902.0,38900.0,0.4596222]
[1646582203622,0.0011,38905.0,38900.0,0.4596222]
[1646582203818,0.00022614,38902.0,38900.0,0.4596222]
[1646582204420,0.11878057,38911.0,38901.0,1.1]
[1646582204720,0.11878057,38911.0,38902.0,0.459347]
[1646582204921,0.21282979,38910.0,38906.0,0.16669576]
[1646582205119,0.20770875,38912.0,38906.0,0.16669576]
[1646582205320,0.01420875,38912.0,38906.0,0.16669576]
[1646582205519,0.01420875,38912.0,38906.0,0.22875448]
[1646582205718,0.00920875,38912.0,38906.0,0.22875448]
[1646582206123,0.20784689,38911.0,38906.0,0.22875448]
[1646582206575,0.00920875,38912.0,38906.0,0.16669576]
[1646582207574,0.19308681,38911.0,38906.0,0.24096105]
[1646582207775,0.00920875,38912.0,38906.0,0.24096105]
[1646582207975,0.00920875,38912.0,38907.0,0.3]
[1646582208579,0.00022621,38911.0,38906.0,0.24096105]
[1646582208779,0.20504616,38911.0,38906.0,0.24096105]
[1646582209579,0.20481995,38911.0,38906.0,0.24096105]
[1646582209778,0.00022622,38910.0,38907.0,0.3]
[1646582210830,0.17423039,38912.0,38907.0,0.3]
[1646582211029,0.17423039,38912.0,38908.0,0.159314]
[1646582211030,0.00022605,38910.0,38908.0,0.159314]
[1646582211234,0.00022605,38910.0,38908.0,0.159316]
[1646582211830,0.00022605,38910.0,38907.0,0.3]
[1646582212031,0.00920875,38912.0,38907.0,0.3]
[1646582212231,0.00022605,38911.0,38907.0,0.3]
[1646582212431,0.00022605,38911.0,38908.0,0.159314]
[1646582213035,0.00022605,38911.0,38907.0,0.3]
[1646582213232,0.19455059,38912.0,38906.0,0.24096105]
[1646582213432,0.00022604,38911.0,38907.0,0.15932]
[1646582213898,0.00022604,38911.0,38907.0,0.159321]
[1646582214300,0.19455059,38912.0,38907.0,0.159321]
[1646582214501,0.19455059,38912.0,38907.0,0.459321]
[1646582214502,0.00022622,38911.0,38907.0,0.459321]
[1646582215503,0.19455059,38912.0,38907.0,0.459321]
[1646582215703,0.00022622,38911.0,38907.0,0.459321]
[1646582215904,0.00022622,38911.0,38907.0,0.159321]
[1646582216104,0.00022622,38911.0,38906.0,0.16869576]
[1646582216403,0.00022622,38911.0,38906.0,0.16669576]
[1646582216804,0.00920875,38912.0,38906.0,0.16669576]
[1646582217104,0.00022622,38910.0,38907.0,0.15432]
[1646582217925,0.00920875,38912.0,38907.0,0.15432]
[1646582218122,0.00920875,38912.0,38907.0,0.154329]
[1646582218322,0.00022194,38910.0,38907.0,0.154329]
[1646582218723,0.00022194,38910.0,38908.0,0.3]
[1646582218923,0.00022194,38910.0,38909.0,0.154321]
[1646582219126,0.00920875,38912.0,38909.0,0.44781193]
[1646582219524,0.00022194,38911.0,38909.0,0.44781193]
[1646582219723,0.00022194,38911.0,38910.0,0.3]
[1646582219926,0.00022194,38911.0,38910.0,0.447806]
[1646582220427,0.00920875,38912.0,38911.0,0.147801]
[1646582220625,0.00943069,38912.0,38911.0,0.447801]
[1646582221676,0.00920875,38912.0,38911.0,0.447801]
[1646582223571,0.00920875,38912.0,38911.0,0.147801]
[1646582224175,0.00920875,38912.0,38908.0,0.147816]
[1646582224571,0.18206555,38911.0,38908.0,0.147816]
[1646582225018,0.18206555,38911.0,38909.0,0.3]
[1646582225221,0.00920875,38912.0,38904.0,0.006]
[1646582225422,0.00920875,38912.0,38903.0,0.00021177]
[1646582225423,0.15,38905.0,38903.0,0.00021177]
[1646582225623,2.315696,38904.0,38884.0,0.2499999]
[1646582225925,1.1,38896.0,38895.0,0.3614962]
[1646582226222,2.27914207,38896.0,38895.0,0.3125962]
[1646582226522,3.06979316,38896.0,38895.0,0.3125962]
[1646582226823,2.91479316,38896.0,38895.0,0.3125962]
[1646582227020,3.11619316,38896.0,38895.0,0.28263427]
[1646582227219,3.10978507,38896.0,38895.0,0.28263427]
[1646582227420,3.20885507,38896.0,38895.0,0.28263427]
[1646582227621,3.74774403,38896.0,38895.0,0.28263427]
[1646582228222,0.06435039,38891.0,38878.0,0.1165]
[1646582228422,0.064348,38885.0,38877.0,0.19618397]
[1646582228624,0.428698,38887.0,38885.0,0.12869599]
[1646582228871,0.385642,38886.0,38885.0,0.12869599]
[1646582229271,0.5890061,38886.0,38885.0,0.12869599]
[1646582230272,0.6533531,38886.0,38885.0,0.12869599]
[1646582231570,0.2677111,38886.0,38885.0,0.12869599]
[1646582231771,0.6533531,38886.0,38885.0,0.12869599]
[1646582231977,0.064347,38886.0,38885.0,0.12869599]
[1646582232373,0.064347,38886.0,38885.0,0.12298599]
[1646582232919,0.21815972,38886.0,38885.0,0.12298599]
[1646582233519,0.064347,38886.0,38885.0,0.12298599]
[1646582234523,0.12868824,38889.0,38885.0,0.12298599]
[1646582234722,0.064347,38889.0,38885.0,0.12298599]
[1646582234922,0.25735947,38893.0,38885.0,0.12298599]
[1646582234923,0.5,38895.0,38886.0,0.4449413]
[1646582235123,0.7713,38894.0,38886.0,0.4449413]
[1646582235422,0.7713,38894.0,38888.0,0.15710618]
[1646582235621,0.7713,38894.0,38889.0,0.3]
[1646582235820,0.7713,38894.0,38893.0,0.20765977]
[1646582236021,0.7713,38894.0,38893.0,0.65556077]
[1646582236475,0.7713,38894.0,38893.0,0.35556077]
[1646582236676,0.7713,38894.0,38893.0,0.65556077]
[1646582237279,0.27791787,38904.0,38894.0,0.21440285]
[1646582237477,0.15431787,38904.0,38895.0,0.3]
[1646582237677,0.15431787,38904.0,38896.0,0.14788]
[1646582237878,0.15431787,38904.0,38898.0,0.14787]
[1646582238477,0.15431787,38904.0,38899.0,0.00021095]
[1646582238678,0.0094219,38908.0,38900.0,0.14786]
[1646582238878,0.0094219,38908.0,38899.0,0.00021095]
[1646582239478,0.009211,38908.0,38897.0,0.004]
[1646582239682,0.19640449,38905.0,38901.0,0.00021095]
[1646582239878,0.00021091,38908.0,38901.0,0.00021095]
[1646582240718,0.237825,38911.0,38896.0,0.3]
[1646582240919,0.237825,38911.0,38901.0,0.00021125]
[1646582241119,0.00021121,38908.0,38901.0,0.00021125]
[1646582241720,0.12883121,38908.0,38901.0,0.00021125]
[1646582241919,0.19741135,38904.0,38900.0,0.002]
[1646582242121,0.19741135,38904.0,38901.0,0.00021125]
[1646582242520,0.00021121,38908.0,38902.0,0.14785]
[1646582242721,0.00021121,38908.0,38901.0,0.00021125]
[1646582243122,0.137829,38912.0,38900.0,0.004]
[1646582243326,0.00021121,38908.0,38901.0,0.00021125]
[1646582243787,0.18109793,38908.0,38901.0,0.00021125]
[1646582243987,0.385642,38907.0,38901.0,0.00021125]
[1646582244193,0.385642,38906.0,38901.0,0.00021125]
[1646582244389,0.3,38907.0,38888.0,0.30058109]
[1646582244588,0.3,38907.0,38901.0,0.00021123]
[1646582244789,0.18109791,38908.0,38901.0,0.00021123]
[1646582245588,0.18088672,38908.0,38897.0,0.17396338]
[1646582245792,0.18109791,38908.0,38901.0,0.00021123]
[1646582246491,0.48109791,38908.0,38901.0,0.00021123]
[1646582246888,0.48088672,38908.0,38900.0,0.004]
[1646582247090,0.18109791,38908.0,38901.0,0.00021123]
[1646582247928,0.18088672,38908.0,38900.0,0.004]
[1646582248128,0.064315,38907.0,38901.0,0.00021123]
[1646582249131,0.12862871,38907.0,38896.0,0.004]
[1646582249330,0.12862871,38907.0,38901.0,0.00021123]
[1646582249531,0.064314,38906.0,38901.0,0.00021123]
[1646582250433,0.064314,38906.0,38894.0,0.49298774]
[1646582250632,0.17670227,38902.0,38901.0,0.00021123]
[1646582251276,0.11421119,38908.0,38901.0,0.00021123]
[1646582251677,0.114,38908.0,38896.0,0.004]
[1646582251880,0.11421118,38908.0,38900.0,0.00021123]
[1646582252277,0.20123798,38901.0,38900.0,0.00021123]
[1646582252876,0.20123798,38901.0,38894.0,0.21499979]
[1646582252877,0.20123798,38901.0,38895.0,0.147882]
[1646582253079,0.3,38906.0,38899.0,0.00021123]
[1646582253277,0.06432,38903.0,38899.0,0.00021123]
[1646582253679,0.11421118,38908.0,38899.0,0.00021123]
[1646582254079,0.114,38908.0,38894.0,0.50596766]
[1646582254280,0.11421118,38908.0,38899.0,0.00021123]
[1646582254880,0.17852318,38908.0,38899.0,0.00021123]
[1646582255125,0.17226213,38903.0,38895.0,0.004]
[1646582255330,0.17226213,38903.0,38901.0,0.00021123]
[1646582256129,0.17852319,38908.0,38901.0,0.00021123]
[1646582256328,0.178312,38908.0,38895.0,0.304]
[1646582256529,0.064313,38907.0,38900.0,0.00021123]
[1646582257531,0.114,38908.0,38895.0,0.3]
[1646582257730,0.114,38908.0,38901.0,0.00021107]
[1646582257933,0.15216747,38905.0,38901.0,0.00021107]
[1646582258230,0.15216747,38905.0,38901.0,0.00014017]
[1646582258873,0.15216747,38905.0,38898.0,0.003]
[1646582261573,0.064318,38904.0,38898.0,0.003]
[1646582261776,0.15216747,38905.0,38898.0,0.003]
[1646582262174,0.15216747,38905.0,38895.0,0.3]
[1646582262376,0.15216747,38905.0,38896.0,0.147876]
[1646582262629,0.15216747,38905.0,38900.0,0.0002261]
[1646582263630,0.15216747,38905.0,38896.0,0.147875]
[1646582263828,0.15216747,38905.0,38900.0,0.0002261]
[1646582265931,0.15216747,38905.0,38897.0,0.004]
[1646582266132,0.15216747,38905.0,38900.0,0.0002261]
[1646582267175,0.15216747,38905.0,38897.0,0.004]
[1646582267376,0.15216747,38905.0,38900.0,0.00021916]
[1646582268382,0.15216747,38905.0,38896.0,0.147875]
[1646582268577,0.15216747,38905.0,38900.0,0.00021916]
[1646582268979,0.11421912,38908.0,38900.0,0.00021916]
[1646582269580,0.114,38908.0,38897.0,0.004]
[1646582269781,0.11421912,38908.0,38900.0,0.00021917]
[1646582270031,0.19443568,38904.0,38900.0,0.00021917]
[1646582270832,0.19443568,38904.0,38895.0,0.4]
[1646582271032,0.19443568,38904.0,38900.0,0.00021125]
[1646582271632,0.19443568,38904.0,38901.0,0.147855]
[1646582272032,0.17831,38908.0,38901.0,0.147855]
[1646582272231,0.06452121,38908.0,38900.0,0.00021125]
[1646582272633,0.00021121,38908.0,38900.0,0.00021125]
[1646582273233,0.04005556,38910.0,38897.0,0.005]
[1646582273432,0.17842918,38905.0,38900.0,0.00021126]
[1646582274481,0.17842918,38905.0,38896.0,0.3]
[1646582274781,0.17842918,38905.0,38900.0,0.00021177]
[1646582275680,0.17842918,38905.0,38896.0,0.3]
[1646582275880,0.17842918,38905.0,38900.0,0.00021177]
[1646582276383,0.06452273,38908.0,38900.0,0.00021177]
[1646582276579,0.00021173,38908.0,38900.0,0.00021177]
[1646582276780,0.12936133,38910.0,38896.0,0.3]
[1646582276982,0.12936133,38910.0,38900.0,0.00021178]
[1646582277181,0.00021173,38908.0,38900.0,0.00021178]
[1646582277629,0.17475484,38904.0,38900.0,0.00021178]
[1646582278026,0.17475484,38904.0,38897.0,0.003]
[1646582278027,0.17475484,38904.0,38898.0,0.147867]
[1646582278227,0.17475484,38904.0,38900.0,0.00021173]
[1646582278429,0.17475484,38904.0,38900.0,0.00010443]
[1646582278726,0.17475484,38904.0,38901.0,0.147855]
[1646582279529,0.17475484,38904.0,38896.0,0.303]